[Event "US Masters 2022"]
[Site "Charlotte"]
[Date "2022.11.24"]
[Round "1.1"]
[White "Zhao, Erick"]
[Black "Oparin, Grigoriy"]
[Result "0-1"]
[ECO "C91"]
[WhiteElo "2243"]
[BlackElo "2683"]
[Annotator "TA"]
[PlyCount "74"]
[EventDate "2022.11.23"]
[EventType "swiss"]
[EventCountry "USA"]
[SourceTitle "playchess.com"]
[Source "ChessBase"]
[SourceQuality "1"]
[TimeControl "5400+30"]

{[%evp 20,74,11,5,7,0,0,0,0,0,0,0,0,0,0,0,0,-18,-6,-16,30,0,0,0,6,2,0,-42,-40,-41,-41,-41,-41,-41,-41,-46,-47,-84,-83,-83,-81,-182,-182,-172,-156,-256,-245,-783,-766,-766,-713,-5506,-5477,-5397,-5365,-5002,-830]} 1. e4 {[%emt 0:01:42]} e5 {[%emt 0:08:09]} 2. Nf3 {[%emt 0:00:10]} Nc6 {[%emt 0:00:15]} 3. Bb5 {[%emt 0:00:10][%cal Bf1b5,Bb5a4,Ba4b3][%mdl 32]} a6 {[%emt 0:00:14]} 4. Ba4 {[%emt 0:00:09]} Nf6 {[%emt 0:00:32]} 5. O-O {[%emt 0:00:25]} Be7 {[%emt 0:00:41]} 6. Re1 {[%emt 0:00:37]} b5 {[%emt 0:00:14]} 7. Bb3 {[%emt 0:00:12]} d6 {[%emt 0:00:10]} 8. c3 {[%emt 0:00:57]} O-O {[%emt 0:00:07]} 9. d4 {[%emt 0:00:27]} Bg4 {[%emt 0:00:27]} 10. Be3 {[%emt 0:00:10]} exd4 {[%emt 0:00:59]} 11. cxd4 {[%emt 0:00:17]} Na5 {[%emt 0:00:08][%cal Oa5b3] C91: Closed Ruy Lopez: 7...d6 8 c3 0-0 9 d4.} (11... Nxe4 $2 12. Qc2 $18) 12. h3 {[%emt 0:00:28]} Nxb3 {[%emt 0:03:23]} 13. axb3 {[%emt 0:00:48]} Bh5 {[%emt 0:00:29] The position is equal.} 14. Nbd2 {[%emt 0:00:53]} c5 {[%emt 0:03:12]} 15. g4 {[%emt 0:04:36]} Bg6 {[%emt 0:00:15]} 16. Nh4 {[%emt 0:01:11]} Re8 {[%emt 0:18:01]} 17. Nf5 {[%emt 0:19:47]} Nd7 {[%emt 0:13:43]} 18. Nf3 {[%emt 0:11:31]} Bxf5 {[%emt 0:04:27]} 19. exf5 {[%emt 0:01:03]} Bf6 {[%emt 0:01:59] [#]} (19... Qc7 {might be stronger.}) 20. Bf4 $146 {[%emt 0:07:08]} (20. Re2 $5 {[%cal Rd4c5]}) ({Predecessor:} 20. Qd2 h6 21. Bf4 Qb6 22. d5 c4 23. b4 Rxe1+ 24. Rxe1 Rc8 25. Re3 Qb7 26. h4 {½-½ (39) Kunal,M (2302)-Golubov,S (2481) Abu Dhabi 2016}) 20... cxd4 {[%emt 0:04:58]} 21. Rxe8+ {[%emt 0:05:09]} Qxe8 {[%emt 0:00:05]} 22. Bxd6 {[%emt 0:00:19][%cal Og4g5]} Qe4 {[%emt 0:07:33]} 23. g5 {[%emt 0:03:35]} Be5 {[%emt 0:03:52]} 24. Nxe5 {[%emt 0:00:20]} Nxe5 {[%emt 0:00:04]} 25. Bxe5 {[%emt 0:00:04]} Qxe5 $15 {[%emt 0:00:05][%mdl 4096] Endgame KQR-KQR} 26. Qf3 {[%emt 0:00:28]} Qe8 {[%emt 0:04:50]} 27. Qd3 {[%emt 0:23:41]} Qd8 {[%emt 0:00:39]} 28. f4 {[%emt 0:02:05]} Qd6 $36 {[%emt 0:02:21][%mdl 2048] Black is in control.} 29. Qe4 {[%emt 0:00:31]} Rd8 {[%emt 0:00:09]} 30. Kf2 {[%emt 0:04:02]} (30. Rd1 $17) 30... d3 $19 {[%emt 0:00:33][%cal Bd4d3,Bd3d2][%mdl 32]} 31. Rd1 {[%emt 0:03:17]} d2 {[%emt 0:01:16]} 32. Ke2 {[%emt 0:00:30]} (32. Qe3 $17) 32... Qd7 {[%emt 0:00:42] [#] And now ...Re8 would win.} 33. Qb4 $2 {[%emt 0:02:48]} (33. Kf1) 33... Qd3+ {[%emt 0:02:45] Black is clearly winning.} ({And not} 33... Qxf5 34. Rxd2 Re8+ 35. Kf2 $17) 34. Kf2 {[%emt 0:00:03]} Qxh3 {[%emt 0:03:35] ( -> ...Qh2+)} ({Weaker is} 34... Qxf5 35. Rxd2 Re8 36. Re2 Rxe2+ 37. Kxe2 $17) 35. Rxd2 {[%emt 0:01:28]} Qh2+ {[%emt 0:00:03]} 36. Ke3 {[%emt 0:01:16]} Qg3+ {[%emt 0:00:06]} 37. Ke2 {[%emt 0:00:47]} Qg2+ {[%emt 0:00:03] Weighted Error Value: White=0.66/Black=0.04 (flawless)} (37... Re8+ $142 38. Kd1 Qg4+ 39. Kc2 Qxf5+ 40. Kc1 Rc8+ 41. Kd1 Qg4+ 42. Re2 Rd8+ 43. Qd2 Rxd2+ 44. Kxd2 Qxf4+ 45. Kd3 Kf8) 0-1

[Event "US Masters 2022"]
[Site "Charlotte"]
[Date "2022.11.24"]
[Round "1.2"]
[White "Negi, Parimarjan"]
[Black "Homa, Seth"]
[Result "1-0"]
[ECO "B31"]
[WhiteElo "2639"]
[BlackElo "2242"]
[Annotator "TA"]
[PlyCount "69"]
[EventDate "2022.11.23"]
[EventType "swiss"]
[EventCountry "USA"]
[SourceTitle "playchess.com"]
[Source "ChessBase"]
[SourceQuality "1"]
[TimeControl "5400+30"]

{[%evp 12,69,20,18,19,21,15,0,20,20,20,0,0,0,0,0,3,0,0,0,50,37,45,0,27,0,122,125,128,128,111,131,127,127,130,102,116,137,175,88,66,72,158,97,183,247,198,204,191,183,211,240,235,164,163,169,348,352,754,741]} 1. e4 {[%emt 0:00:34]} c5 {[%emt 0:00:11]} 2. Nf3 {[%emt 0:00:20]} Nc6 {[%emt 0:00:09]} 3. Bb5 {[%emt 0:09:28]} g6 {[%emt 0:00:21]} 4. O-O {[%emt 0:00:27]} Bg7 {[%emt 0:00:07]} 5. Bxc6 {[%emt 0:01:15]} dxc6 {[%emt 0:01:02]} 6. d3 {[%emt 0:00:12]} Nf6 {[%emt 0:00:11]} 7. Nc3 {[%emt 0:01:18]} b6 {[%emt 0:03:45] B31: Sicilian: 2...Nc6 3 Bb5 g6.} 8. a4 {[%emt 0:01:56]} a5 {[%emt 0:00:10]} 9. Bf4 {[%emt 0:02:57]} Nd7 {[%emt 0:03:33] The position is equal.} 10. Qd2 {[%emt 0:04:37]} h6 {[%emt 0:00:14]} 11. h3 {[%emt 0:06:22]} e5 {[%emt 0:00:26]} 12. Be3 {[%emt 0:00:27]} Nf8 {[%emt 0:00:35] [#]} 13. Ne2 $146 {[%emt 0:00:53]} ({Predecessor:} 13. b3 Ne6 14. Ne2 Nd4 15. Nh2 Be6 16. Rae1 g5 17. Ng3 Qd7 18. Bxd4 exd4 19. f4 gxf4 20. Qxf4 {0-1 (68) Salinas Herrera,P (2514)-Reimanis,R (2421) Chess.com INT 2020}) 13... Ne6 {[%emt 0:00:29]} 14. Nh2 {[%emt 0:01:13]} Qc7 {[%emt 0:10:13]} 15. Rae1 {[%emt 0:04:05]} h5 {[%emt 0:09:57]} (15... g5 $11) 16. Kh1 {[%emt 0:05:36]} Bd7 {[%emt 0:34:12]} 17. c3 {[%emt 0:07:57]} O-O-O {[%emt 0:01:55]} 18. b4 {[%emt 0:02:51]} cxb4 {[%emt 0:08:19]} (18... f5 $11 19. f3 cxb4 20. cxb4 Bf8 21. bxa5 bxa5) 19. cxb4 $16 {[%emt 0:00:07]} axb4 {[%emt 0:00:06]} 20. Qxb4 {[%emt 0:00:11]} c5 {[%emt 0:00:03]} 21. Qc4 {[%emt 0:01:08]} Bc6 {[%emt 0:00:23]} 22. Rb1 {[%emt 0:01:18]} Rd6 {[%emt 0:06:35]} 23. Nc3 {[%emt 0:03:05][%cal Oa4a5]} Rhd8 {[%emt 0:00:08]} 24. a5 {[%emt 0:11:05]} ({And not} 24. Qa6+ Qb7 25. Qxb6 (25. Rxb6 $2 Qxa6 26. Rxa6 Kb7 $19) 25... Bxe4 $1 $15) (24. Nf3 {with more complications.} Rxd3 25. a5 bxa5 26. Na4) 24... bxa5 {[%emt 0:02:01]} 25. Bxc5 {[%emt 0:05:57]} (25. Nf3 $18) 25... Nxc5 {[%emt 0:00:17]} (25... Rxd3 $2 26. Bb6 R8d4 27. Bxd4 Rxd4 28. Qa2 $18) 26. Qxc5 {[%emt 0:01:19] And now Rfc1 would win.} Be8 {[%emt 0:06:34] [#]} ({Not} 26... Rxd3 27. Nb5 Bf8 28. Na7+ Kd7 29. Qc4 Qxa7 30. Qxd3+ Ke8 31. Qc3 $18) (26... R8d7 $142) 27. Qa3 {[%emt 0:01:10] White is more active.} (27. Qe3 $142 $1 {Strongly threatening Rfc1.} Rxd3 28. Qe2 Rxc3 29. Qa6+ Kd7 30. Rb7 Qxb7 31. Qxb7+ Ke6 32. Nf3) 27... Rxd3 {[%emt 0:00:26]} (27... Bc6 $16 {is a better defense.}) 28. Rfc1 $1 $18 {[%emt 0:01:55][%cal Oc3d5] aiming for Nd5!} Bc6 {[%emt 0:00:20] Prevents Nd5.} 29. Nf1 $1 {[%emt 0:06:22]} Bh6 {[%emt 0:00:15] White must now prevent ...Bxe4.} 30. Ne3 $1 {[%emt 0:00:54]} Bxe3 {[%emt 0:01:37]} 31. fxe3 {[%emt 0:00:24] Threatens to win with Qc5.} Kd7 {[%emt 0:09:04]} (31... Rxe3 $2 32. Qc5 Rxc3 33. Rxc3 $18) 32. Qc5 {[%emt 0:01:44][%mdl 1024] White has strong compensation.} Qd6 {[%emt 0:00:06] [#] Prevents Nd5.} 33. Qc4 {[%emt 0:00:06]} Ke8 $2 {[%emt 0:01:25] [#]} (33... Ke7) 34. Rb6 $1 {[%emt 0:00:14]} ({Less strong is} 34. Nd5 Rxd5 35. exd5 Bxd5 36. Qb5+ Ke7 $16) 34... Rc8 {[%emt 0:00:11]} (34... Qe6 35. Qxc6+ Qxc6 36. Rxc6 Rxe3) 35. Nd5 {[%emt 0:01:18] Weighted Error Value: White=0.16 (very precise) /Black=0.28 (precise)} 1-0

[Event "US Masters 2022"]
[Site "Charlotte"]
[Date "2022.11.24"]
[Round "1.3"]
[White "Morefield, Jason"]
[Black "Liang, Awonder"]
[Result "0-1"]
[ECO "C54"]
[WhiteElo "2238"]
[BlackElo "2630"]
[Annotator "TA"]
[PlyCount "88"]
[EventDate "2022.11.23"]
[EventType "swiss"]
[EventCountry "USA"]
[SourceTitle "playchess.com"]
[Source "ChessBase"]
[SourceQuality "1"]
[TimeControl "5400+30"]

{[%evp 12,88,24,20,13,0,8,-34,7,0,9,-12,6,-23,-20,-19,-19,-40,-36,-55,-48,-77,-72,-96,-58,-141,-43,-241,-129,-305,-144,-359,-335,-357,-357,-440,-379,-389,-397,-381,-383,-385,-401,-413,-414,-407,-405,-410,-397,-402,-397,-397,-386,-406,-395,-402,-374,-413,-413,-358,-381,-409,-420,-387,-369,-361,-352,-464,-441,-460,-463,-555,-550,-494,-437,-592,-585,-548,-537]} 1. e4 {[%emt 0:00:03]} e5 {[%emt 0:00:01]} 2. Nf3 {[%emt 0:00:13]} Nc6 {[%emt 0:00:01]} 3. Bc4 {[%emt 0:00:34]} Bc5 {[%emt 0:00:02]} 4. c3 {[%emt 0:00:12]} Nf6 {[%emt 0:00:02]} 5. d3 {[%emt 0:00:10][%cal Bd2d3,Bd3d4][%mdl 32]} d6 {[%emt 0:00:04]} 6. O-O {[%emt 0:00:15]} O-O {[%emt 0:00:03]} 7. Re1 {[%emt 0:01:47]} (7. Bg5 {looks sharper.} h6 8. Bh4 Na5 9. b4) 7... a5 {[%emt 0:00:35] C54: Giuoco Piano: 4 c3 Nf6, main lines with 5 d4 and 5 d3.} 8. d4 {[%emt 0:01:42]} Bb6 {[%emt 0:01:40] [#]} 9. Bb5 $146 {[%emt 0:02:24]} ({Predecessor:} 9. h3 h6 10. Bb5 Bd7 11. Na3 Re8 12. d5 Ne7 13. Bxd7 Qxd7 14. Nc4 Bc5 15. a4 {0-1 (41) Nezar,M (2353)-Rakotomaharo,F (2422) Playchess.com INT 2021}) 9... Ne7 {[%emt 0:10:40] Black is slightly better.} 10. h3 {[%emt 0:05:53]} Ng6 {[%emt 0:04:03]} 11. Nbd2 {[%emt 0:01:34]} c6 {[%emt 0:01:50]} 12. Ba4 {[%emt 0:00:50]} exd4 {[%emt 0:04:08]} 13. cxd4 {[%emt 0:00:09]} d5 {[%emt 0:00:02]} 14. e5 {[%emt 0:00:22]} Nh5 {[%emt 0:00:39]} 15. Nf1 {[%emt 0:02:53]} Nhf4 {[%emt 0:07:57]} 16. Bc2 {[%emt 0:10:40][%cal Oh3h4]} f6 $1 {[%emt 0:00:34]} 17. Be3 {[%emt 0:03:18]} fxe5 {[%emt 0:02:45] Black is more active.} 18. dxe5 {[%emt 0:00:16]} (18. Bxg6 $15 Nxg6 19. dxe5) 18... Bc7 {[%emt 0:06:34]} (18... Bxe3 $17 19. Rxe3 Nh4 20. Nxh4 Qxh4) 19. Bd4 {[%emt 0:05:39] [#]} (19. Bc5 $15) 19... b6 {[%emt 0:03:07]} ({Black should play} 19... Nh4 $1 $19 {[%cal Rh4f3]} 20. Nxh4 Qxh4) 20. b3 $2 {[%emt 0:02:32] [#]} (20. e6 $17 {was called for.}) 20... c5 {[%emt 0:03:07]} (20... Nh4 $1 $19 {[%cal Rh4f3]} 21. Nxh4 Qxh4) 21. Bb2 $2 {[%emt 0:00:07] Now White is beyond hope.} (21. Be3 $17) 21... Nh4 $19 {[%emt 0:03:33]} 22. Nxh4 {[%emt 0:03:35]} Qxh4 {[%emt 0:00:02]} 23. Nh2 {[%emt 0:09:01]} Qg5 {[%emt 0:05:43][%csl Gf4][%cal Rg5g2]} 24. Ng4 {[%emt 0:00:08]} h5 {[%emt 0:00:25][%cal Bh7h5,Bh5g4][%mdl 32]} 25. Bc1 {[%emt 0:00:37]} hxg4 {[%emt 0:11:52]} (25... Bxg4 26. hxg4 Rad8 27. Qd3 Nxd3 28. Bxg5 Nxe1 29. Rxe1 $15) 26. Bxf4 {[%emt 0:00:08]} Qxf4 {[%emt 0:00:05] Really sharp!} 27. Qxd5+ {[%emt 0:00:11]} Kh8 {[%emt 0:01:12]} 28. Qxa8 {[%emt 0:00:29]} Qxf2+ {[%emt 0:00:12]} ({Inferior is} 28... Bxe5 29. Rxe5 Qxe5 30. Rf1 $15) 29. Kh1 {[%emt 0:00:22][%cal Oe1f1] Hoping for Rf1!} Qxc2 {[%emt 0:00:04]} 30. hxg4 {[%emt 0:03:49]} Qg6 {[%emt 0:02:56] Prevents Qc6.} 31. Re3 {[%emt 0:02:22]} Kg8 {[%emt 0:00:33]} 32. Qd5+ {[%emt 0:06:19]} Qe6 {[%emt 0:00:49]} 33. Qe4 {[%emt 0:00:36]} Qxg4 {[%emt 0:01:56]} 34. e6 {[%emt 0:00:56]} Qxe4 {[%emt 0:00:23]} 35. Rxe4 {[%emt 0:00:08]} Re8 {[%emt 0:00:35]} ({Avoid the trap} 35... Bb7 $2 36. Re3 $19) 36. Rae1 {[%emt 0:00:20]} Re7 {[%emt 0:01:04]} ({Not} 36... Bb7 $2 37. R4e3 $19) 37. Kg1 {[%emt 0:00:21]} Bb7 {[%emt 0:00:40]} 38. R4e3 {[%emt 0:00:25] Against Bg3} Bd5 {[%emt 0:00:49]} 39. g3 {[%emt 0:00:23]} c4 {[%emt 0:02:21] Black is clearly winning.} 40. bxc4 {[%emt 0:00:06]} Bxc4 {[%emt 0:00:05]} 41. a3 {[%emt 0:00:04]} b5 {[%emt 0:00:14] aiming for ...Bb6.} 42. Kh2 {[%emt 0:00:21]} Bb6 {[%emt 0:00:26] Inhibits a4.} 43. Re5 {[%emt 0:00:20]} Bd4 {[%emt 0:00:21]} 44. R5e4 {[%emt 0:00:10]} Bc3 {[%emt 0:00:02] Weighted Error Value: White=0.41/Black=0.20 (precise)} 0-1

[Event "US Masters 2022"]
[Site "Charlotte"]
[Date "2022.11.24"]
[Round "1.4"]
[White "Naroditsky, Daniel"]
[Black "Johnson, Donald"]
[Result "1-0"]
[ECO "B53"]
[WhiteElo "2617"]
[BlackElo "2232"]
[Annotator "TA"]
[PlyCount "111"]
[EventDate "2022.11.23"]
[EventType "swiss"]
[EventCountry "USA"]
[SourceTitle "playchess.com"]
[Source "ChessBase"]
[SourceQuality "1"]
[TimeControl "5400+30"]

{[%evp 9,111,0,13,5,31,39,63,58,57,64,70,70,69,74,78,76,81,76,89,77,103,108,195,86,97,100,101,107,107,106,108,112,133,131,125,125,125,128,160,160,166,148,159,145,138,95,105,103,93,99,93,95,103,101,97,91,80,81,86,100,104,79,245,223,290,184,181,178,178,181,179,179,179,199,166,169,169,60,60,60,326,247,29978,29979,29979,29979,29980,29981,29982,29981,29981,29982,29982,29982,29982,29983,29983,29984,29985,29986,29986,29986,29986,29987]} 1. e4 {[%emt 0:00:03]} c5 {[%emt 0:06:43]} 2. Nf3 {[%emt 0:00:17]} d6 {[%emt 0:00:01]} 3. d4 {[%emt 0:00:20]} cxd4 {[%emt 0:00:06]} 4. Qxd4 {[%emt 0:00:22]} Nf6 {[%emt 0:00:27]} 5. Nc3 {[%emt 0:00:46]} Nc6 {[%emt 0:02:24]} 6. Qd3 {[%emt 0:00:38] B53: Sicilian: 2...d6: Lines with Qxd4.} e6 {[%emt 0:06:26]} 7. Bf4 {[%emt 0:01:59]} Be7 {[%emt 0:01:38]} 8. O-O-O {[%emt 0:01:28][%cal Rf4d6] White is slightly better.} e5 {[%emt 0:07:57]} 9. Bg5 {[%emt 0:00:10]} O-O {[%emt 0:01:19]} 10. Bxf6 {[%emt 0:01:01]} Bxf6 {[%emt 0:00:38]} 11. Qxd6 {[%emt 0:00:10]} Qxd6 {[%emt 0:08:32]} 12. Rxd6 {[%emt 0:00:08] [#]} Be7 $146 {[%emt 0:00:06]} ({Predecessor:} 12... a6 13. Nd5 Bd8 14. c3 Bg4 15. h3 Bxf3 16. gxf3 Ne7 17. Rg1 Ng6 18. Be2 Bg5+ {1-0 (17) Caio,F (1655)-De Oliveira,I (1489) Recife 2018}) 13. Rd2 {[%emt 0:08:20] White is more active.} Bb4 {[%emt 0:01:44]} 14. Bb5 {[%emt 0:05:58]} Bxc3 {[%emt 0:07:38]} 15. bxc3 {[%emt 0:00:12]} Be6 {[%emt 0:11:55]} (15... f6 $16) 16. Kb2 {[%emt 0:08:30]} (16. Bxc6 $18 bxc6 17. Nxe5) 16... f6 {[%emt 0:03:29]} 17. Rd6 {[%emt 0:03:25][%csl LRc6,LRe6]} Kf7 {[%emt 0:00:46]} 18. Bxc6 {[%emt 0:05:33]} bxc6 {[%emt 0:00:05]} 19. Rxc6 {[%emt 0:00:02]} Rab8+ {[%emt 0:01:53]} 20. Ka1 {[%emt 0:00:25]} Rfc8 {[%emt 0:01:15]} 21. Rxc8 {[%emt 0:01:18]} Rxc8 $16 {[%emt 0:00:01][%mdl 4096] Endgame KRB-KRN} 22. Rb1 $1 {[%emt 0:02:33]} Rxc3 {[%emt 0:03:20]} 23. Rb7+ {[%emt 0:00:47]} Kg6 {[%emt 0:01:15]} 24. Kb2 {[%emt 0:07:51]} (24. Rxa7 Rxc2 25. Nh4+ Kh6 $15) 24... Rc4 {[%emt 0:03:10]} 25. Re7 {[%emt 0:01:48]} ({But not} 25. Rxa7 $6 Rb4+ 26. Kc3 Rxe4 $16) 25... Bc8 {[%emt 0:30:12] [#]} 26. Rxe5 {[%emt 0:06:58][%mdl 512] aiming for Re7.} Bb7 {[%emt 0:00:00]} 27. Nh4+ {[%emt 0:09:53]} Kf7 {[%emt 0:00:00] [#]} 28. Nf5 $1 {[%emt 0:01:19]} fxe5 {[%emt 0:00:00]} 29. Nd6+ {[%emt 0:00:03]} Ke6 {[%emt 0:00:00]} 30. Nxc4 {[%emt 0:00:02] Hoping for f3.} Bxe4 {[%emt 0:00:00] KB-KN} 31. Ne3 {[%emt 0:02:37]} Kd6 {[%emt 0:00:00]} 32. f3 {[%emt 0:06:52]} Bg6 {[%emt 0:00:00]} 33. Kc3 {[%emt 0:00:10]} Kc5 {[%emt 0:00:00]} 34. a3 {[%emt 0:00:16][%cal Ba2a3,Ba3a4][%mdl 32]} h6 {[%emt 0:00:00]} 35. h4 {[%emt 0:02:01][%cal Bh2h4,Bh4h5][%mdl 32]} Bh7 $2 {[%emt 0:00:00]} (35... h5 $16 {was necessary.}) 36. h5 $1 $18 {[%emt 0:01:56]} a6 {[%emt 0:00:00]} 37. g3 {[%emt 0:03:21][%cal Bg2g3,Bg3g4][%mdl 32] Threatens to win with g4.} a5 {[%emt 0:00:08]} 38. a4 {[%emt 0:03:01]} Bg8 {[%emt 0:03:06]} 39. g4 $1 {[%emt 0:03:26]} Be6 {[%emt 0:00:43] [#]} 40. Nf5 $1 {[%emt 0:00:08]} Bd5 {[%emt 0:00:24]} 41. Nxg7 {[%emt 0:00:31]} Bxf3 {[%emt 0:00:04]} 42. g5 {[%emt 0:00:09]} Be4 {[%emt 0:01:44]} 43. Ne8 {[%emt 0:04:15]} (43. Kb3 $18 Bd5+ 44. Kc3) 43... hxg5 $14 {[%emt 0:01:10] Strongly threatening ...g4.} 44. h6 {[%emt 0:00:15]} ({Less strong is} 44. Nf6 Bf5 $18) 44... Bg6 $2 {[%emt 0:01:03][%mdl 8192]} (44... Bh7 $1 $14) 45. Nf6 $18 {[%emt 0:00:03]} Kd6 $2 {[%emt 0:01:01] [#]} (45... Bf5 $18 46. h7 Bxh7 47. Nxh7 Kd6 48. Nxg5 Kd5 49. Kd3 Kc6 50. c4 Kc5 51. Ne4+ Kc6) 46. h7 $1 {[%emt 0:00:05] White mates.} Bxh7 {[%emt 0:00:00]} 47. Nxh7 {[%emt 0:00:05] KN-K3P} g4 {[%emt 0:00:02]} 48. Nf6 {[%emt 0:00:05]} e4 {[%emt 0:00:47]} 49. Nxg4 {[%emt 0:00:27] KN-KPP} Kd5 {[%emt 0:00:09]} 50. Ne3+ {[%emt 0:00:04]} Kc5 {[%emt 0:00:07]} 51. Nc4 {[%emt 0:00:27]} Kd5 {[%emt 0:00:02]} 52. Nxa5 {[%emt 0:00:08]} e3 {[%emt 0:00:01]} 53. Kd3 {[%emt 0:00:11]} Kc5 {[%emt 0:00:02]} 54. Nb3+ {[%emt 0:00:07]} Kb4 {[%emt 0:00:07]} 55. a5 {[%emt 0:00:03]} e2 {[%emt 0:00:05]} 56. Kxe2 {[%emt 0:00:02] Weighted Error Value: White=0.10 (very precise) /Black=0.23 (precise)} 1-0

[Event "US Masters 2022"]
[Site "Charlotte"]
[Date "2022.11.24"]
[Round "1.5"]
[White "Andersen, Gunnar"]
[Black "Antipov, Mikhail Al."]
[Result "1-0"]
[ECO "C02"]
[WhiteElo "2224"]
[BlackElo "2608"]
[Annotator "TA"]
[PlyCount "59"]
[EventDate "2022.11.23"]
[EventType "swiss"]
[EventCountry "USA"]
[SourceTitle "playchess.com"]
[Source "ChessBase"]
[SourceQuality "1"]
[TimeControl "5400+30"]

{[%evp 14,59,23,35,19,25,33,46,54,36,112,33,47,47,60,46,54,52,146,141,145,121,222,183,180,195,179,176,184,158,226,217,219,211,243,216,222,174,244,220,221,223,450,453,473,463,521,514]} 1. e4 {[%emt 0:00:35]} e6 {[%emt 0:10:06]} 2. d4 {[%emt 0:00:07]} d5 {[%emt 0:00:02]} 3. e5 {[%emt 0:00:05]} c5 {[%emt 0:00:06]} 4. c3 {[%emt 0:00:03]} Qb6 {[%emt 0:01:38]} 5. Nf3 {[%emt 0:00:13]} Bd7 {[%emt 0:00:25]} 6. Bd3 {[%emt 0:00:19]} Bb5 {[%emt 0:02:13]} 7. dxc5 $1 {[%emt 0:00:08][%mdl 4] is currently scoring better than 7.0-0.} Bxc5 {[%emt 0:00:08]} 8. b4 {[%emt 0:00:04]} Bxd3 {[%emt 0:02:27] C02: French: Advance Variation.} 9. Qxd3 {[%emt 0:00:31]} Be7 {[%emt 0:03:36]} (9... Bxf2+ 10. Ke2 $16) 10. O-O {[%emt 0:05:48]} Qa6 {[%emt 0:00:54] [#] Inhibits c4. White is slightly better.} 11. Qe3 $146 {[%emt 0:04:54]} ({Predecessor:} 11. b5 Qa4 12. Nbd2 Nd7 13. c4 Nc5 14. Qd4 Rd8 15. Qg4 g6 16. Qf4 h5 17. Qd4 {1-0 (35) Grabarczyk,B (2396)-Feist,P (2249) Germany 2016}) 11... Qa4 {[%emt 0:13:42] [#]} (11... h5 $14) 12. Nbd2 {[%emt 0:05:43]} ({White should try} 12. c4 $1 $16 {[%cal Rc4d5]}) 12... Nd7 {[%emt 0:08:21]} 13. Nd4 {[%emt 0:03:17][%cal Bf3d4,Bd4e6,Be6f4,Bf4d5][%mdl 32]} Rc8 {[%emt 0:00:52]} 14. Qg3 {[%emt 0:03:21]} (14. N2b3 $5 {[%cal Rf2f4]}) 14... g6 {[%emt 0:00:27]} 15. N2b3 {[%emt 0:01:27] Prevents a5.} h5 {[%emt 0:00:38] [#] Black is on the road to losing.} (15... Bd8 $14) 16. Nxe6 $1 $16 {[%emt 0:04:57][%cal Ob3d4][%mdl 512] Threatens to win with Nbd4!} h4 {[%emt 0:05:57]} (16... fxe6 $2 17. Qxg6+ Kf8 18. Nd4 $18 (18. Qxe6 Kg7 $16)) 17. Qd3 $36 {[%emt 0:02:46][%mdl 2048] Hoping for Nf4. White is on the roll.} h3 {[%emt 0:03:13] [#]} (17... Nxe5 $16 {might work better.} 18. Qxd5 Qc6 19. Qxe5 Bf6) 18. Re1 $1 {[%emt 0:08:17]} Qa6 {[%emt 0:08:12]} (18... fxe6 $2 19. Qxg6+ Kd8 20. Qg7 $18 (20. Qxe6 hxg2 21. Nd4 Nb6 $11)) 19. Qxa6 {[%emt 0:00:29]} (19. Qxd5 fxe6 20. Qe4 Nh6 21. Qxg6+ Nf7 $17) 19... bxa6 {[%emt 0:00:03]} 20. Nf4 {[%emt 0:00:15][%csl LRd5,LRh3]} Nb6 {[%emt 0:00:03]} 21. Be3 {[%emt 0:06:56]} (21. gxh3 Rxc3 22. Bd2 Rc4 $14) 21... Rxc3 {[%emt 0:05:17]} (21... hxg2 $16 22. Bxb6 (22. Nxg2 Rxc3 23. Bxb6 axb6 $11) 22... axb6) 22. Bxb6 $18 {[%emt 0:02:07]} (22. Nxh3 $6 Bxb4 23. a3 Be7 $16) (22. gxh3 Rh4 $11) 22... axb6 {[%emt 0:00:03]} 23. Nxd5 {[%emt 0:00:07]} (23. Nxh3 Bxb4 24. Red1 Ne7 $11) 23... Rd3 {[%emt 0:00:38]} 24. Rad1 {[%emt 0:01:39]} ({Don't take} 24. Nxb6 $6 Bxb4 25. Re4 a5 $16) 24... Rxd1 {[%emt 0:00:05]} 25. Rxd1 {[%emt 0:00:04]} Bd8 {[%emt 0:07:46]} (25... f6 $142 26. Nd4 (26. Nxb6 Rh4 $16) 26... fxe5) 26. Nd4 {[%emt 0:10:26]} hxg2 {[%emt 0:00:06]} 27. Nc6 {[%emt 0:00:22] Pair of Knights!} Bh4 {[%emt 0:01:34] Inhibits Nf6+.} (27... Nh6 28. Nxd8 (28. Kxg2 b5 $18) 28... Kxd8 29. Nxb6+ Ke8) 28. Nxb6 {[%emt 0:03:10] White is clearly winning.} Nh6 {[%emt 0:00:13]} 29. Kxg2 {[%emt 0:01:26]} O-O {[%emt 0:00:33]} 30. a4 {[%emt 0:03:13] Weighted Error Value: White=0.13 (very precise) /Black=0.40} 1-0